fUSD/lending_fUSD_20240929
["ID","MTS","AMOUNT","RATE_DAILY","PERIOD"]
[339410105,1727593838582,-14669.33326419,0.000109,2]
[339410106,1727593838591,-223.5460258,0.000109,2]
[339410107,1727593838600,-223.54602579,0.000109,2]
[339410108,1727593838610,-223.54602579,0.000109,2]
[339410109,1727593838619,-223.54602579,0.000109,2]
[339410110,1727593838628,-223.54602579,0.000109,2]
[339410111,1727593838637,-223.54602579,0.000109,2]
[339410112,1727593838646,-223.54602579,0.000109,2]
[339410113,1727593838655,-223.54602579,0.000109,2]
[339410114,1727593838664,-500.0,0.00010958,2]
[339410115,1727593838673,-500.0,0.00010958,2]
[339410116,1727593838682,-500.0,0.00010958,2]
[339410117,1727593838692,-500.0,0.00010958,2]
[339410118,1727593838702,-237.64962491,0.00010958,2]
[339410119,1727593838712,-507.07596464,0.00010958,2]
[339410120,1727593838721,-500.0,0.00010958,2]
[339410121,1727593838731,-500.0,0.00010958,2]
[339410122,1727593838740,-500.0,0.00010958,2]
[339410123,1727593838749,-500.0,0.00010958,2]
[339410124,1727593838759,-500.0,0.00010958,2]
[339410125,1727593838769,-515.19119084,0.00010958,2]
[339410126,1727593838778,-500.0,0.00010958,2]
[339410127,1727593838787,-500.0,0.00010958,2]
[339410128,1727593838796,-500.0,0.00010958,2]
[339410129,1727593838805,-500.0,0.00010958,2]
[339410130,1727593838814,-500.0,0.00010958,2]
[339410131,1727593838824,-500.0,0.00010958,2]
[339410132,1727593838833,-500.0,0.00010958,2]
[339410133,1727593838842,-500.0,0.00010958,2]
[339410134,1727593838851,-500.0,0.00010958,2]
[339410135,1727593838861,-500.0,0.00010958,2]
[339410136,1727593838870,-500.0,0.00010958,2]
[339410137,1727593838880,-500.0,0.00010958,2]
[339410138,1727593838889,-13502.0,0.0001097,2]
[339410139,1727593838899,-150.0,0.0001097,2]
[339410140,1727593838908,-1148.0,0.0001097,2]
[339410141,1727593838918,-5872.0,0.0001097,2]
[339410142,1727593838928,-270.66522426,0.00010986,2]
[339410143,1727593838937,-150.0,0.00010986,2]
[339410144,1727593838946,-1296.0,0.00010988,2]
[339410145,1727593838955,-448.0,0.00010988,2]
[339410146,1727593838964,-559.0,0.00010988,2]
[339410147,1727593838974,-810.0,0.00010988,2]
[339410148,1727593838983,-933.0,0.00010988,2]
[339410149,1727593838992,-1074.076,0.00010988,2]
[339410150,1727593839002,-157.7,0.0001099,2]
[339410151,1727593839011,-2286.8720073,0.00010997,2]
[339410152,1727593839020,-1000.0,0.00010999,2]
[339410153,1727593839030,-556.73873008,0.00010999,2]
[339410154,1727593839039,-121878.7452653,0.00011,2]
[339410155,1727593839048,-546815.48066725,0.00011,2]
[339410156,1727593839061,-928.87403068,0.00011,2]
[339410157,1727593839072,-1080225.57601942,0.00011,2]
[339410158,1727593839083,-1433.91078519,0.00011,2]
[339410159,1727593839094,-405.78470797,0.00011,2]
[339410160,1727593839105,-10362.42247428,0.00011,2]
[339410161,1727593839115,-14225.01632046,0.00011,2]
[339410162,1727593839126,-32552.84912431,0.00011,2]
[339410163,1727593839138,-7094.29459475,0.00011,2]
[339410164,1727593839150,-59362.52481641,0.00011,2]
[339410165,1727593839177,-1291.06,0.00011,2]
[339410166,1727593839188,-1113.24123562,0.00011,2]
[339410167,1727593839200,-1786.89851028,0.00011,2]
[339410168,1727593839211,-16045.4338332,0.00011,2]
[339410169,1727593839224,-867.57638522,0.00011,2]
[339410170,1727593839235,-880.16105896,0.00011,2]
[339410171,1727593839247,-453.30570109,0.00011,2]
[339410172,1727593839264,-421.27749924,0.00011,2]
[339410173,1727593839275,-1306.63194,0.00011,2]
[339410174,1727593839286,-793.57344363,0.00011,2]
[339410175,1727593839298,-3088.10000001,0.00011,2]
[339410176,1727593839309,-1659.66309036,0.00011,2]
[339410177,1727593839320,-1854.69404992,0.00011,2]
[339410178,1727593839331,-31088.34445756,0.00011,2]
[339410179,1727593839342,-5255.92241343,0.00011,2]
[339410180,1727593839358,-288.55661629,0.00011,2]
[339410181,1727593839370,-563.31326908,0.00011,2]
[339410182,1727593839381,-428.61941707,0.00011,2]
[339410183,1727593839392,-824.51259311,0.00011,2]
[339410184,1727593839403,-468.50164004,0.00011,2]
[339410185,1727593839416,-584.643,0.00011,2]
[339410186,1727593839427,-345.0,0.00011,2]
[339410187,1727593839440,-491.44993447,0.00011,2]
[339410188,1727593839455,-319.8,0.00011,2]
[339410189,1727593839502,-784.66825475,0.00011,2]
[339410190,1727593839516,-4827.45922204,0.00011,2]
[339410191,1727593839529,-6022.5791488,0.00011,2]
[339410192,1727593839541,-434.49,0.00011,2]
[339410193,1727593839552,-2512.71029907,0.00011,2]
[339410194,1727593839564,-26612.30646997,0.00011,2]
[339410195,1727593839575,-875.69451227,0.00011,2]
[339410196,1727593839586,-1284.68,0.00011,2]
[339410205,1727593840210,-44179.61026134,0.00011,2]
[339410207,1727593840222,-268488.46732053,0.00011,2]
[339410215,1727593840374,-2607.20000779,0.00011,2]
[339410216,1727593840386,-658.96772688,0.00011,2]
[339410217,1727593840434,-1039.63504738,0.00011,2]
[339410218,1727593840446,-845.82572877,0.00011,2]
[339410219,1727593840462,-389.16323654,0.00011,2]
[339410220,1727593840486,-104166.80425803,0.00011,2]
[339410221,1727593840501,-1387.96978456,0.00011,2]
[339410222,1727593840544,-3014.50300993,0.00011,2]
[339410223,1727593840611,-1396.69046004,0.00011,2]
[339410442,1727593846272,-634.286,0.0001097,2]
[339410443,1727593846281,-75629.03069165,0.00011,2]
[339410444,1727593846945,-103712.33097,0.00011,2]
[339410589,1727594049279,521.4,8.507e-05,2]
[339410599,1727594348925,228.34,9.811e-05,2]
[339410600,1727594350527,172.03,9.589e-05,2]
[339410604,1727594367316,152.93,0.00013918,30]
[339410605,1727594379579,200.0,9.857e-05,2]
[339410606,1727594385704,275.61,9.805e-05,2]
[339410607,1727594403657,1975.26,9.849e-05,2]
[339410608,1727594404901,404.5,9.849e-05,2]
[339410609,1727594411290,166.88,9.803e-05,2]
[339410612,1727594450692,2048.93,9.845e-05,2]
[339410613,1727594472998,1357.28,9.805e-05,2]
[339410614,1727594483639,9227.03,9.805e-05,2]
[339410626,1727594536868,1689.416954,9.893e-05,2]
[339410627,1727594572549,1924.35,9.849e-05,2]
[339410628,1727594587154,1416.56,9.849e-05,2]
[339410629,1727594597136,500.0,9.769e-05,2]
[339410645,1727594597523,500.0,9.77e-05,2]
[339410659,1727594598156,500.0,9.77e-05,2]
[339410661,1727594604432,495.33,8.219e-05,2]
[339410664,1727594664196,177.26,9.88e-05,2]
[339410665,1727594674482,-296.64886264,9.9e-05,2]
[339410666,1727594674907,-150.0,9.9e-05,2]
[339410667,1727594675516,-150.0,9.9e-05,2]
[339410668,1727594676036,-150.0,9.9e-05,2]
[339410669,1727594677115,-150.0,9.9e-05,2]
[339410670,1727594677564,-150.0,9.9e-05,2]
[339410671,1727594678001,-150.0,9.9e-05,2]
[339410672,1727594678530,-150.0,9.9e-05,2]
[339410673,1727594679081,-150.0,9.9e-05,2]
[339410674,1727594679619,-150.0,9.9e-05,2]
[339410675,1727594680051,-150.0,9.9e-05,2]
[339410676,1727594680714,-150.0,9.9e-05,2]
[339410677,1727594681446,-150.0,9.9e-05,2]
[339410678,1727594682080,-150.0,9.9e-05,2]
[339410679,1727594682544,-150.0,9.9e-05,2]
[339410680,1727594683025,-150.0,9.9e-05,2]
[339410681,1727594683640,-150.0,9.9e-05,2]
[339410682,1727594684074,-150.0,9.9e-05,2]
[339410683,1727594684571,-150.0,9.9e-05,2]
[339410684,1727594685007,-150.0,9.9e-05,2]
[339410685,1727594685627,-150.0,9.9e-05,2]
[339410686,1727594685972,-150.0,9.9e-05,2]
[339410687,1727594686552,-150.0,9.9e-05,2]
[339410688,1727594687223,-150.0,9.9e-05,2]
[339410689,1727594687585,-150.0,9.9e-05,2]
[339410690,1727594704883,150.0,9.888e-05,2]
[339410692,1727594725112,150.0,9.888e-05,2]
[339410693,1727594735503,150.0,9.888e-05,2]
[339410694,1727594737074,5199.28,9.493e-05,2]
[339410696,1727594745020,661.44,9.453e-05,2]
[339410697,1727594749276,150.0,9.888e-05,2]
[339410700,1727594754250,151.92635787,9.888e-05,2]
[339410701,1727594754445,1273.10434999,6.94e-05,2]
[339410702,1727594757717,150.0,9.888e-05,2]
[339410704,1727594763831,150.0,9.888e-05,2]
[339410705,1727594766237,1231.92,9.454e-05,2]
[339410706,1727594770828,150.0,9.888e-05,2]
[339410707,1727594866933,250.86,9.455e-05,2]
[339410713,1727594926782,152.93,0.00013918,30]
[339410714,1727594936159,500.0,9.432e-05,2]
[339410718,1727594947329,189.36,9.431e-05,2]
[339410719,1727594949804,334.82,9.431e-05,2]
[339410720,1727594953358,250.0,9.442e-05,2]
[339410724,1727594966347,840.0,9.453e-05,2]
[339410725,1727594975693,150.0,9.45e-05,2]
[339410729,1727595030625,150.0,9.45e-05,2]
[339410752,1727595032521,-40.55113736,9.9e-05,2]
[339410753,1727595032531,-150.0,9.909e-05,2]
[339410754,1727595032541,-633.04962175,9.909e-05,2]
[339410755,1727595032550,-633.04962174,9.92e-05,2]
[339410756,1727595032559,-150.0,9.927e-05,2]
[339410757,1727595032569,-150.0,9.93e-05,2]
[339410758,1727595032578,-633.04962174,9.93e-05,2]
[339410759,1727595032589,-250.0,9.943e-05,2]
[339410760,1727595032597,-150.0,9.951e-05,2]
[339410761,1727595032607,-300.0,9.961e-05,2]
[339410762,1727595032616,-6355.28602641,9.962e-05,2]
[339410763,1727595032628,-3300.0,9.962e-05,2]
[339410764,1727595032640,-6440.68082418,9.962e-05,2]
[339410765,1727595032651,-3069.88264083,9.962e-05,2]
[339410766,1727595032716,-1228.21770133,9.962e-05,2]
[339410884,1727595038906,-501.86506333,9.962e-05,2]
[339410885,1727595038981,-3004.06774392,9.962e-05,2]
[339410886,1727595038992,-300.0,9.962e-05,2]
[339410887,1727595039002,-150.0,9.966e-05,2]
[339410888,1727595039012,-150.0,9.972e-05,2]
[339410889,1727595039021,-150.0,9.993e-05,2]
[339410890,1727595039031,-150.0,9.998e-05,2]
[339410891,1727595039040,-150.0,0.00010005,2]
[339410892,1727595039049,-150.0,0.00010014,2]
[339410893,1727595039059,-150.0,0.00010036,2]
[339410894,1727595039068,-150.0,0.00010045,2]
[339410895,1727595039077,-150.0,0.00010057,2]
[339410896,1727595039087,-800.0,0.00010068,2]
[339410897,1727595039096,-600.0,0.00010068,2]
[339410898,1727595039105,-150.0,0.00010078,2]
[339410899,1727595039115,-150.0,0.00010084,2]
[339410900,1727595039124,-150.0,0.00010099,2]
[339410901,1727595039133,-150.0,0.00010107,2]
[339410902,1727595039142,-150.0,0.0001012,2]
[339410903,1727595039152,-150.0,0.00010123,2]
[339410904,1727595039162,-150.0,0.00010123,2]
[339410905,1727595039171,-150.0,0.00010141,2]
[339410906,1727595039180,-150.0,0.00010162,2]
[339410907,1727595039189,-150.0,0.00010162,2]
[339410908,1727595039198,-150.0,0.00010183,2]
[339410909,1727595039208,-150.0,0.00010202,2]
[339410910,1727595039219,-150.0,0.00010205,2]
[339410911,1727595039228,-626.83,0.00010212,2]
[339410912,1727595039238,-150.0,0.00010217,2]
[339410913,1727595039247,-150.0,0.00010226,2]
[339410914,1727595039258,-150.0,0.00010241,2]
[339410915,1727595039267,-150.0,0.00010247,2]
[339410916,1727595039276,-150.0,0.00010254,2]
[339410917,1727595039285,-150.0,0.00010268,2]
[339410918,1727595039295,-150.0,0.0001028,2]
[339410919,1727595039304,-427.616,0.00010284,2]
[339410920,1727595039316,-152.034,0.00010284,2]
[339410921,1727595039325,-150.0,0.00010289,2]
[339410922,1727595039336,-150.0,0.0001031,2]
[339410923,1727595039346,-150.0,0.00010319,2]
[339410924,1727595039356,-150.0,0.00010327,2]
[339410925,1727595039365,-150.0,0.00010331,2]
[339410926,1727595039375,-150.0,0.00010352,2]
[339410927,1727595039385,-150.0,0.00010359,2]
[339410928,1727595039395,-150.0,0.00010374,2]
[339410929,1727595039404,-150.0,0.00010395,2]
[339410930,1727595039414,-150.0,0.00010398,2]
[339410931,1727595039424,-150.0,0.00010416,2]
[339410932,1727595039434,-150.0,0.00010437,2]
[339410933,1727595039444,-150.0,0.00010437,2]
[339410934,1727595039453,-150.0,0.00010437,2]
[339410935,1727595039463,-150.0,0.00010437,2]
[339410936,1727595039472,-150.0,0.00010458,2]
[339410937,1727595039481,-495.33,0.00010473,2]
[339410938,1727595039491,-150.0,0.00010476,2]
[339410939,1727595039500,-150.0,0.00010479,2]
[339410940,1727595039509,-150.0,0.000105,2]
[339410941,1727595039519,-150.0,0.00010515,2]
[339410942,1727595039528,-150.0,0.00010521,2]
[339410943,1727595039538,-150.0,0.00010543,2]
[339410944,1727595039547,-150.0,0.00010547,2]
[339410945,1727595039557,-150.0,0.00010555,2]
[339410946,1727595039567,-150.0,0.00010564,2]
[339410947,1727595039576,-150.0,0.00010585,2]
[339410948,1727595039586,-150.0,0.00010594,2]
[339410949,1727595039596,-150.0,0.00010606,2]
[339410950,1727595039606,-150.0,0.0001062,2]
[339410951,1727595039615,-150.0,0.00010627,2]
[339410952,1727595039624,-150.0,0.00010633,2]
[339410953,1727595039634,-840.0,0.00010635,2]
[339410954,1727595039643,-150.0,0.00010648,2]
[339410955,1727595039652,-150.0,0.00010657,2]
[339410956,1727595039661,-150.0,0.00010669,2]
[339410957,1727595039670,-150.0,0.00010672,2]
[339410958,1727595039680,-150.0,0.00010691,2]
[339410959,1727595039689,-150.0,0.00010712,2]
[339410960,1727595039698,-150.0,0.00010712,2]
[339410961,1727595039708,-150.0,0.00010733,2]
[339410962,1727595039718,-150.0,0.00010751,2]
[339410963,1727595039728,-150.0,0.00010754,2]
[339410964,1727595039737,-150.0,0.00010767,2]
[339410965,1727595039746,-150.0,0.00010775,2]
[339410966,1727595039755,-150.0,0.0001079,2]
[339410967,1727595039765,-150.0,0.00010796,2]
[339410968,1727595039774,-3810.4606,0.00010799,2]
[339410969,1727595039784,-150.0,0.00010817,2]
[339410970,1727595039794,-150.0,0.00010829,2]
[339410971,1727595039803,-150.0,0.00010838,2]
[339410972,1727595039813,-150.0,0.0001086,2]
[339410973,1727595039822,-150.0,0.00010869,2]
[339410974,1727595039832,-150.0,0.00010876,2]
[339410975,1727595039842,-150.0,0.00010881,2]
[339410976,1727595039852,-1136.44,0.000109,2]
[339410977,1727595039861,-2400.0,0.000109,2]
[339410978,1727595039870,-450.0,0.000109,2]
[339410979,1727595039880,-225.8737,0.000109,2]
[339410980,1727595039890,-494.7639,0.000109,2]
[339410981,1727595039899,-21696.9967,0.000109,2]
[339410982,1727595039908,-3184.5597,0.000109,2]
[339410983,1727595039917,-3188.8746,0.000109,2]
[339410984,1727595039927,-166.69228459,0.000109,2]
[339410985,1727595039937,-151.34010265,0.000109,2]
[339410986,1727595039947,-6691.9528,0.000109,2]
[339410987,1727595039956,-638.85026048,0.000109,2]
[339410988,1727595039965,-20045.1006902,0.000109,2]
[339410989,1727595039975,-656.72586489,0.000109,2]
[339410991,1727595039989,-150.0,0.00010902,2]
[339410992,1727595039999,-150.0,0.00010908,2]
[339410993,1727595040008,-150.0,0.00010923,2]
[339410994,1727595040019,-150.0,0.00010944,2]
[339410995,1727595040029,-150.0,0.00010947,2]
[339410996,1727595040039,-420.0,0.00010957,2]
[339410997,1727595040049,-250.0,0.00010959,2]
[339410998,1727595040060,-150.0,0.00010965,2]
[339410999,1727595040070,-267.15378696,0.00010986,2]
[339411000,1727595040079,-150.0,0.00010986,2]
[339411001,1727595040089,-201.00000001,0.00010986,2]
[339411002,1727595040098,-150.8781928,0.00010986,2]
[339411003,1727595040108,-151.87916957,0.00010986,2]
[339411004,1727595040117,-150.0,0.00010986,2]
[339411005,1727595040127,-1000.0,0.00010999,2]
[339411006,1727595040137,-500.0,0.00010999,2]
[339411007,1727595040147,-612.79902121,0.00010999,2]
[339411008,1727595040156,-123685.16225145,0.00011,2]
[339411009,1727595040166,-1640940.21960851,0.00011,2]
[339411012,1727595040460,-9096.64373114,0.00011,2]
[339411013,1727595040471,-8947.21879473,0.00011,2]
[339411014,1727595040483,-8943.78386462,0.00011,2]
[339411015,1727595040494,-9077.54866152,0.00011,2]
[339411016,1727595040505,-8943.84023489,0.00011,2]
[339411017,1727595040602,-267.91325291,0.00011,2]
[339411258,1727595043427,-6282.47197859,0.00011,2]
[339411272,1727595046536,-35336.06562397,0.00011,2]
[339411273,1727595046548,-6555.17334851,0.00011,2]
[339411274,1727595046559,-662.79999999,0.00011,2]
[339411275,1727595046570,-37386.59598641,0.00011,2]
[339411276,1727595046582,-2587.69755451,0.00011,2]
[339411277,1727595046593,-2661.0,0.00011,2]
[339411306,1727595106457,500.0,0.00022,120]
[339411307,1727595133402,500.0,0.00022,120]
[339411308,1727595155854,229.298,9.862e-05,2]
[339411310,1727595188203,506.320678,0.00021999,120]
[339411311,1727595188851,500.0,0.00021999,120]
[339411312,1727595188977,500.0,0.00021999,120]
[339411313,1727595189120,169.34729867,0.00021999,120]
[339411314,1727595189233,500.0,0.00021999,120]
[339411315,1727595189478,229.38,0.00021999,120]
[339411316,1727595190725,388.70447455,0.00021999,120]
[339411317,1727595190763,200.92264013,0.00021999,120]
[339411318,1727595190859,500.0,0.00021999,120]
[339411319,1727595191146,216.44849752,0.00021999,120]
[339411320,1727595191284,626.12586766,0.00021999,120]
[339411321,1727595193136,500.0,0.00021999,120]
[339411322,1727595193208,500.0,0.00021999,120]
[339411323,1727595193377,893.17,0.00021999,120]
[339411324,1727595193407,555.39713079,0.00021999,120]
[339411325,1727595193437,500.0,0.00021999,120]
[339411326,1727595193511,306.61241437,0.00021999,120]
[339411327,1727595193722,500.0,0.00021999,120]
[339411328,1727595193765,893.17,0.00021999,120]
[339411329,1727595194106,893.17,0.00021999,120]
[339411330,1727595194168,500.0,0.00021999,120]
[339411331,1727595194410,893.17,0.00021999,120]
[339411332,1727595194453,500.0,0.00021999,120]
[339411333,1727595194682,500.0,0.00021999,120]
[339411334,1727595194714,893.17,0.00021999,120]
[339411335,1727595194849,500.0,0.00021999,120]
[339411336,1727595194962,500.0,0.00021999,120]
[339411337,1727595194995,893.17,0.00021999,120]
[339411338,1727595195138,500.0,0.00021999,120]
[339411339,1727595195247,500.0,0.00021999,120]
[339411340,1727595195363,893.17,0.00021999,120]
[339411341,1727595195405,500.0,0.00021999,120]
[339411342,1727595195521,500.0,0.00021999,120]
[339411343,1727595195662,466.25,8.348e-05,2]
[339411344,1727595195692,893.17,0.00021999,120]
[339411345,1727595195737,500.0,0.00021999,120]
[339411346,1727595195795,500.0,0.00021999,120]
[339411347,1727595195997,500.0,0.00021999,120]
[339411348,1727595196089,500.0,0.00021999,120]
[339411349,1727595196119,893.17,0.00021999,120]
[339411350,1727595196279,500.0,0.00021999,120]
[339411351,1727595196371,500.0,0.00021999,120]
[339411352,1727595196402,893.17,0.00021999,120]
[339411353,1727595196592,500.0,0.00021999,120]
[339411354,1727595196635,500.0,0.00021999,120]
[339411355,1727595196665,893.17,0.00021999,120]
[339411356,1727595196906,500.0,0.00021999,120]
[339411357,1727595196951,893.17,0.00021999,120]
[339411358,1727595196987,500.0,0.00021999,120]
[339411359,1727595197162,500.0,0.00021999,120]
[339411360,1727595197192,893.17,0.00021999,120]
[339411361,1727595197226,500.0,0.00021999,120]
[339411362,1727595197444,500.0,0.00021999,120]
[339411363,1727595197476,893.17,0.00021999,120]
[339411365,1727595197508,544.54446579,0.00021999,120]
[339411366,1727595197617,500.0,0.00021999,120]
[339411367,1727595197714,500.0,0.00021999,120]
[339411368,1727595197746,893.17,0.00021999,120]
[339411369,1727595197891,500.0,0.00021999,120]
[339411370,1727595197980,500.0,0.00021999,120]
[339411371,1727595198053,893.17,0.00021999,120]
[339411372,1727595198170,280.35012357,0.00021999,120]
[339411373,1727595198266,500.0,0.00021999,120]
[339411374,1727595198321,893.17,0.00021999,120]
[339411375,1727595198536,500.0,0.00021999,120]
[339411376,1727595198569,500.0,0.00021999,120]
[339411377,1727595198609,893.17,0.00021999,120]
[339411378,1727595198803,500.0,0.00021999,120]
[339411379,1727595198849,240.18960891,0.00021999,120]
[339411380,1727595198879,893.17,0.00021999,120]
[339411381,1727595199260,500.0,0.00021999,120]
[339411382,1727595199292,893.17,0.00021999,120]
[339411383,1727595199327,500.0,0.00021999,120]
[339411384,1727595199390,500.0,0.00021999,120]
[339411385,1727595199421,893.17,0.00021999,120]
[339411386,1727595199583,212.08787197,0.00021999,120]
[339411387,1727595199653,500.0,0.00021999,120]
[339411388,1727595199684,893.17,0.00021999,120]
[339411389,1727595199920,500.0,0.00021999,120]
[339411390,1727595199952,893.17,0.00021999,120]
[339411391,1727595200158,500.0,0.00021999,120]
[339411392,1727595200199,500.0,0.00021999,120]
[339411393,1727595200230,893.31749553,0.00021999,120]
[339411394,1727595200417,267.78172876,0.00021999,120]
[339411395,1727595200478,500.0,0.00021999,120]
[339411396,1727595200780,500.0,0.00021999,120]
[339411397,1727595201059,500.0,0.00021999,120]
[339411398,1727595201367,500.0,0.00021999,120]
[339411399,1727595201404,500.0,0.00021999,120]
[339411400,1727595201474,500.0,0.00021999,120]
[339411401,1727595201736,502.20115662,0.00021999,120]
[339411402,1727595201771,500.0,0.00021999,120]
[339411403,1727595201918,274.7745,0.00021999,120]
[339411404,1727595202018,164.34568197,0.00021999,120]
[339411405,1727595202374,990.29,0.00021999,120]
[339411406,1727595202653,990.29,0.00021999,120]
[339411407,1727595202945,990.29,0.00021999,120]
[339411408,1727595203316,990.29,0.00021999,120]
[339411409,1727595203592,990.29,0.00021999,120]
[339411410,1727595203859,514.17675081,0.00021999,120]
[339411411,1727595203891,990.29,0.00021999,120]
[339411412,1727595204164,990.29,0.00021999,120]
[339411413,1727595204195,500.0,0.00021999,120]
[339411414,1727595204452,332.13421514,0.00021999,120]
[339411415,1727595204484,990.29,0.00021999,120]
[339411416,1727595204514,500.0,0.00021999,120]
[339411417,1727595204723,552.93294098,0.00021999,120]
[339411418,1727595204753,990.29,0.00021999,120]
[339411419,1727595204788,500.0,0.00021999,120]
[339411420,1727595204997,990.29,0.00021999,120]
[339411421,1727595205037,321.87951689,0.00021999,120]
[339411422,1727595205272,990.29,0.00021999,120]
[339411423,1727595205538,990.29,0.00021999,120]
[339411424,1727595205820,990.29,0.00021999,120]
[339411425,1727595206015,642.4946491,0.00021999,120]
[339411426,1727595206113,990.29,0.00021999,120]
[339411427,1727595206380,990.29,0.00021999,120]
[339411428,1727595206642,990.29,0.00021999,120]
[339411429,1727595206923,990.29,0.00021999,120]
[339411430,1727595207203,990.29,0.00021999,120]
[339411431,1727595207508,990.29,0.00021999,120]
[339411432,1727595207806,990.29,0.00021999,120]
[339411433,1727595208080,550.79320808,0.00021999,120]
[339411434,1727595208111,990.29,0.00021999,120]
[339411435,1727595208466,990.29,0.00021999,120]
[339411436,1727595208550,500.0,0.00021999,120]
[339411437,1727595208727,990.29,0.00021999,120]
[339411438,1727595208811,500.0,0.00021999,120]
[339411439,1727595208982,602.72785193,0.00021999,120]
[339411440,1727595209013,990.47340164,0.00021999,120]
[339411441,1727595209085,500.0,0.00021999,120]
[339411442,1727595209355,500.0,0.00021999,120]
[339411443,1727595209639,418.85179294,0.00021999,120]
[339411444,1727595210145,515.39746793,0.00021999,120]
[339411445,1727595211131,500.0,0.00021999,120]
[339411447,1727595211742,500.0,0.00021999,120]
[339411448,1727595211777,500.0,0.00021999,120]
[339411449,1727595211965,500.0,0.00021999,120]
[339411450,1727595212231,500.0,0.00021999,120]
[339411451,1727595212506,500.0,0.00021999,120]
[339411452,1727595212832,500.0,0.00021999,120]
[339411453,1727595213102,500.0,0.00021999,120]
[339411454,1727595213352,500.0,0.00021999,120]
[339411455,1727595213385,500.0,0.00021999,120]
[339411456,1727595213630,500.0,0.00021999,120]
[339411457,1727595213663,500.0,0.00021999,120]
[339411458,1727595213948,500.0,0.00021999,120]
[339411459,1727595214209,500.0,0.00021999,120]
[339411460,1727595214299,500.0,0.00021999,120]
[339411461,1727595214710,500.0,0.00021999,120]
[339411462,1727595214768,500.0,0.00021999,120]
[339411463,1727595215055,500.0,0.00021999,120]
[339411464,1727595215089,500.0,0.00021999,120]
[339411465,1727595215341,500.0,0.00021999,120]
[339411466,1727595215374,500.0,0.00021999,120]
[339411467,1727595215611,500.0,0.00021999,120]
[339411468,1727595215645,500.0,0.00021999,120]
[339411469,1727595215916,500.0,0.00021999,120]
[339411470,1727595215948,500.0,0.00021999,120]
[339411471,1727595216025,500.0,0.00021999,120]
[339411472,1727595216211,500.0,0.00021999,120]
[339411473,1727595216315,500.0,0.00021999,120]
[339411474,1727595216492,500.0,0.00021999,120]
[339411475,1727595216564,500.0,0.00021999,120]
[339411476,1727595216628,270.14620905,0.00021999,120]
[339411477,1727595216829,500.0,0.00021999,120]
[339411478,1727595216860,210.33525855,0.00021999,120]
[339411479,1727595217305,500.0,0.00021999,120]
[339411480,1727595217441,382.77280186,0.00021999,120]
[339411481,1727595217888,500.0,0.00021999,120]
[339411482,1727595218104,500.0,0.00021999,120]
[339411483,1727595218192,500.0,0.00021999,120]